fUSD/lending_fUSD_20250522
["ID","MTS","AMOUNT","RATE_DAILY","PERIOD"]
[361981428,1747921851189,-850.26,0.00032876,5]
[361981429,1747921851198,-1435.23,0.00032876,5]
[361981430,1747921851207,-1213.98,0.00032876,5]
[361981431,1747921851217,-420.0,0.00032876,5]
[361981432,1747921851226,-420.0,0.00032876,5]
[361981433,1747921851235,-420.0,0.00032876,5]
[361981434,1747921851244,-255.66976918,0.00032876,5]
[361981435,1747921851253,-420.0,0.00032876,5]
[361981436,1747921851262,-698.77,0.00032876,5]
[361981437,1747921851271,-746.02,0.00032876,5]
[361981438,1747921851282,-790.82,0.00032876,5]
[361981439,1747921851291,-3718.07,0.00032876,5]
[361981440,1747921851300,-420.0,0.00032876,5]
[361981441,1747921851309,-502.29,0.00032876,5]
[361981442,1747921851317,-420.0,0.00032876,5]
[361981443,1747921851327,-420.0,0.00032876,5]
[361981444,1747921851335,-420.0,0.00032876,5]
[361981445,1747921851344,-898.27,0.00032876,5]
[361981446,1747921851353,-755.52,0.00032876,5]
[361981447,1747921851362,-420.0,0.00032876,5]
[361981448,1747921851371,-420.0,0.00032876,5]
[361981449,1747921851381,-420.0,0.00032876,5]
[361981450,1747921851390,-420.0,0.00032876,5]
[361981451,1747921851399,-420.0,0.00032876,5]
[361981452,1747921851408,-420.0,0.00032876,2]
[361981453,1747921851417,-496.69,0.00032876,5]
[361981454,1747921851426,-420.0,0.00032876,5]
[361981455,1747921851435,-420.0,0.00032876,5]
[361981456,1747921851444,-900.52,0.00032876,5]
[361981457,1747921851453,-420.0,0.00032876,5]
[361981458,1747921851463,-420.0,0.00032876,5]
[361981459,1747921851473,-420.0,0.00032876,5]
[361981460,1747921851482,-175.39278821,0.00032876,5]
[361981461,1747921851533,-832.85721179,0.00032876,5]
[361981462,1747921851542,-731.62,0.00032876,5]
[361981463,1747921851552,-420.0,0.00032876,5]
[361981464,1747921851561,-706.34,0.00032876,5]
[361981465,1747921851571,-420.0,0.00032876,5]
[361981466,1747921851580,-420.0,0.00032876,5]
[361981467,1747921851589,-1248.41,0.00032876,5]
[361981468,1747921851599,-420.0,0.00032876,5]
[361981469,1747921851608,-420.0,0.00032876,5]
[361981470,1747921851618,-656.03,0.00032876,5]
[361981471,1747921851627,-420.0,0.00032876,5]
[361981472,1747921851636,-480.05,0.00032876,5]
[361981473,1747921851646,-300.0,0.00032876,5]
[361981474,1747921851655,-420.0,0.00032876,5]
[361981475,1747921851665,-1196.79,0.00032876,5]
[361981476,1747921851674,-420.0,0.00032876,5]
[361981477,1747921851684,-498.91,0.00032876,5]
[361981478,1747921851693,-685.97,0.00032876,5]
[361981479,1747921851702,-609.98,0.00032876,5]
[361981480,1747921851716,-420.0,0.00032876,5]
[361981481,1747921851726,-420.0,0.00032876,5]
[361981482,1747921851736,-711.86,0.00032876,5]
[361981483,1747921851746,-420.0,0.00032876,5]
[361981484,1747921851758,-420.0,0.00032876,5]
[361981485,1747921851768,-420.0,0.00032876,5]
[361981486,1747921851777,-420.0,0.00032876,5]
[361981487,1747921851791,-420.0,0.00032876,5]
[361981488,1747921851800,-420.0,0.00032876,5]
[361981489,1747921851810,-735.75,0.00032876,5]
[361981490,1747921851819,-710.35,0.00032876,5]
[361981491,1747921851829,-909.9,0.00032876,5]
[361981492,1747921851838,-513.6,0.00032876,5]
[361981493,1747921851847,-420.0,0.00032876,5]
[361981494,1747921851857,-523.75167341,0.00032876,5]
[361981495,1747921851866,-420.0,0.00032876,5]
[361981496,1747921851876,-546.18,0.00032876,5]
[361981497,1747921851885,-416.51375889,0.00032876,5]
[361981498,1747921851895,-420.0,0.00032876,5]
[361981499,1747921851905,-884.15,0.00032876,5]
[361981500,1747921851915,-754.41,0.00032876,5]
[361981501,1747921851925,-420.0,0.00032876,5]
[361981502,1747921851935,-420.0,0.00032876,5]
[361981503,1747921851944,-1266.24,0.00032876,5]
[361981504,1747921851954,-420.0,0.00032876,5]
[361981505,1747921851963,-420.0,0.00032876,5]
[361981506,1747921851972,-1174.88,0.00032876,5]
[361981507,1747921851982,-420.0,0.00032876,5]
[361981508,1747921851991,-420.0,0.00032876,5]
[361981509,1747921852000,-151.0,0.00032876,7]
[361981510,1747921852009,-773.33,0.00032876,5]
[361981511,1747921852019,-151.0,0.00032876,7]
[361981512,1747921852028,-151.0,0.00032876,7]
[361981513,1747921852038,-151.0,0.00032876,7]
[361981514,1747921852047,-293.59,0.00032876,7]
[361981515,1747921852056,-2595.14,0.00032876,5]
[361981516,1747921852065,-1657.87,0.00032876,5]
[361981517,1747921852074,-441.91,0.00032876,5]
[361981518,1747921852083,-420.0,0.00032876,5]
[361981519,1747921852093,-420.0,0.00032876,5]
[361981520,1747921852102,-420.0,0.00032876,5]
[361981521,1747921852111,-420.0,0.00032876,5]
[361981522,1747921852120,-544.18,0.00032876,5]
[361981523,1747921852129,-420.0,0.00032876,5]
[361981524,1747921852138,-420.0,0.00032876,5]
[361981525,1747921852147,-420.0,0.00032876,5]
[361981526,1747921852157,-7431.98,0.00032876,5]
[361981527,1747921852166,-420.0,0.00032876,5]
[361981528,1747921852175,-1113.01,0.00032876,5]
[361981529,1747921852184,-1024.92,0.00032876,5]
[361981530,1747921852193,-500.13,0.00032876,5]
[361981531,1747921852202,-420.0,0.00032876,5]
[361981532,1747921852211,-684.81,0.00032876,5]
[361981533,1747921852220,-1303.73,0.00032876,5]
[361981534,1747921852229,-1363.67,0.00032876,5]
[361981535,1747921852239,-500.0,0.00032876,30]
[361981536,1747921852248,-480.17,0.00032876,5]
[361981537,1747921852257,-1034.47,0.00032876,5]
[361981538,1747921852266,-420.0,0.00032876,5]
[361981539,1747921852276,-420.0,0.00032876,5]
[361981540,1747921852286,-420.0,0.00032876,5]
[361981541,1747921852296,-420.0,0.00032876,5]
[361981542,1747921852305,-103.54735588,0.00032876,5]
[361981543,1747921852319,-261.81012156,0.00032876,5]
[361981544,1747921852586,-2044.0,0.00032876,5]
[361981545,1747921852605,-3326.68252256,0.00032876,5]
[361981546,1747921852614,-420.0,0.00032876,5]
[361981547,1747921852624,-512.96423664,0.00032876,5]
[361981548,1747921852634,-420.0,0.00032876,5]
[361981549,1747921852643,-420.0,0.00032876,5]
[361981550,1747921852652,-633.97,0.00032876,5]
[361981551,1747921852662,-420.0,0.00032876,5]
[361981552,1747921852671,-443.53,0.00032876,5]
[361981553,1747921852681,-657.13,0.00032876,5]
[361981554,1747921852690,-420.0,0.00032876,5]
[361981555,1747921852700,-420.0,0.00032876,5]
[361981556,1747921852710,-803.54032031,0.00032876,5]
[361981559,1747922334905,368.6258675,0.000274,120]
[361981591,1747922750208,-500.0,0.00013699,2]
[361981592,1747922750229,-150.32,0.00013699,2]
[361981593,1747922750250,-250.0,0.00015,2]
[361981594,1747922750272,-161.95054132,0.00017,2]
[361981599,1747922772484,2000.0,0.00012,2]
[361981600,1747922772849,2000.0,0.00012,2]
[361981601,1747922773611,2000.0,0.00012,2]
[361981603,1747922773934,2000.0,0.00012,2]
[361981604,1747922774877,2000.0,0.00012,2]
[361981605,1747922775507,2000.0,0.00012,2]
[361981606,1747922775583,2000.0,0.00012,2]
[361981607,1747922775889,2000.0,0.00012,2]
[361981609,1747922776606,2000.0,0.00012,2]
[361981610,1747922776934,2000.0,0.00012,2]
[361981613,1747922786413,1200.0,0.00012,2]
[361981614,1747922786714,1200.0,0.00012,2]
[361981616,1747922787129,1200.0,0.00012,2]
[361981618,1747922787533,1200.0,0.00012,2]
[361981620,1747922799511,150.0,0.00012,5]
[361981621,1747922945121,-138.04945868,0.00017,2]
[361981622,1747922945145,-150.32,0.00020187,2]
[361981623,1747922945166,-168.0,0.00023,7]
[361981624,1747922945190,-150.32,0.00026676,2]
[361981625,1747922945213,-6129.78390608,0.000274,30]
[361981626,1747922969092,-267.52055216,0.000274,30]
[361981629,1747923014879,1000.01,4.24e-05,120]
[361981632,1747923032199,-502.69554176,0.000274,30]
[361981633,1747923032209,-532.05,0.00029568,2]
[361981634,1747923032219,-193.90478272,0.00030468,2]
[361981635,1747923032230,-10.09521728,0.00030468,2]
[361981636,1747923032239,-176.330591,0.00031222,2]
[361981637,1747923032249,-150.0,0.00031379,7]
[361981638,1747923032258,-173.16,0.00031412,120]
[361981639,1747923032267,-75.71817401,0.00031425,2]
[361981640,1747923032280,-74.44182599,0.00031425,2]
[361981641,1747923032291,-332.82,0.0003145,120]
[361981642,1747923032301,-207.4,0.0003153,2]
[361981643,1747923032311,-250.0,0.00031549,2]
[361981644,1747923032320,-539.27,0.00031549,2]
[361981645,1747923032330,-150.99,0.00031549,2]
[361981646,1747923032339,-1144.64708702,0.00031549,2]
[361981647,1747923032382,-1124.49855846,0.00031549,2]
[361981648,1747923032397,-538.00484206,0.00031549,2]
[361981649,1747923032525,-566.15665031,0.00031549,2]
[361981650,1747923032536,-603.1360067,0.00031549,2]
[361981681,1747923038211,-300.0,0.00031548,3]
[361981682,1747923038221,-278.12067112,0.00031549,2]
[361981683,1747923038232,-1030.58618433,0.00031549,2]
[361981684,1747923038241,-204.41381567,0.00031549,2]
[361981685,1747923038315,-9795.57618433,0.00031549,2]
[361981686,1747923038325,-483.0,0.00031691,2]
[361981687,1747923038335,-210.51,0.00031701,2]
[361981688,1747923038344,-532.05,0.00031832,2]
[361981689,1747923038354,-1000.0,0.00031883,2]
[361981690,1747923038364,-299.99,0.00031883,12]
[361981691,1747923038373,-487.89,0.00031883,2]
[361981692,1747923038382,-523.130625,0.00031889,4]
[361981693,1747923038391,-1791.78,0.00031895,2]
[361981694,1747923038400,-203.56465483,0.000319,25]
[361981695,1747923038409,-196.14,0.00031936,120]
[361981696,1747923038419,-9600.19589599,0.00032,10]
[361981697,1747923038430,-25724.24088229,0.00032,10]
[361981698,1747923038450,-8432.42301464,0.00032,10]
[361981699,1747923038461,-883.883595,0.00032,10]
[361981700,1747923038472,-5530.527875,0.00032,10]
[361981888,1747923040503,-19762.49429692,0.00032,10]
[361981890,1747923040513,-6243.82188466,0.00032,30]
[361981892,1747923040522,-6062.69,0.000325,2]
[361981894,1747923040531,-999.999999,0.000325,2]
[361981896,1747923040540,-1379.99422287,0.0003255,2]
[361981898,1747923040552,-1395.05269,0.0003255,2]
[361981900,1747923040561,-200.0,0.000326,11]
[361981902,1747923040570,-500.0,0.000327,11]
[361981903,1747923040579,-1276.924,0.00032774,33]
[361981905,1747923040589,-26763.7983,0.00032775,2]
[361981907,1747923040598,-5635.87636518,0.00032776,2]
[361981909,1747923040607,-166.18,0.00032788,2]
[361981911,1747923040616,-7000.00000001,0.000328,30]
[361981913,1747923040625,-800.0,0.000328,11]
[361981915,1747923040634,-377.02,0.00032866,2]
[361981917,1747923040643,-377.02,0.00032866,2]
[361981919,1747923040653,-501.68151837,0.00032867,2]
[361981921,1747923040662,-500.0,0.00032873,5]
[361981923,1747923040671,-500.0,0.00032873,5]
[361981924,1747923040680,-500.0,0.00032873,5]
[361981926,1747923040690,-450.06269522,0.00032873,5]
[361981929,1747923040701,-500.58352484,0.00032873,5]
[361981930,1747923040710,-500.0,0.00032873,5]
[361981932,1747923040719,-348.95609561,0.00032873,5]
[361981934,1747923040729,-500.0,0.00032873,5]
[361981936,1747923040739,-461.48676589,0.00032873,5]
[361981938,1747923040750,-184.00012975,0.00032875,2]
[361981940,1747923040759,-198.8994633,0.00032875,2]
[361981942,1747923040768,-425.9119629,0.00032875,2]
[361981944,1747923040777,-25000.0,0.00032875,2]
[361981946,1747923040786,-216622.40236819,0.00032876,11]
[361981956,1747923040875,-638.64105004,0.00032876,11]
[361981958,1747923040886,-5016.49778301,0.00032876,11]
[361981960,1747923040897,-266.13,0.00032876,11]
[361981963,1747923040916,-640.44687744,0.00032876,11]
[361981966,1747923040927,-1817.249975,0.00032876,11]
[361981968,1747923040938,-1778.0,0.00032876,11]
[361981970,1747923040948,-1000.0,0.00032876,11]
[361981972,1747923040959,-1000.0,0.00032876,11]
[361981974,1747923040974,-1256.69851086,0.00032876,11]
[361982316,1747923044624,-4070.06529862,0.000327,2]
[361982318,1747923044636,-500.0,0.000327,2]
[361982511,1747923046610,-5708.53347057,0.000327,2]
[361982514,1747923046619,-6913.06454165,0.00032876,11]
[361982517,1747923046631,-5220.0,0.00032876,11]
[361982520,1747923046643,-715.1210082,0.00032876,11]
[361982530,1747923046684,-7438.8159,0.00032876,11]
[361982533,1747923046696,-556.15,0.00032876,11]
[361982537,1747923046707,-500.0,0.00032876,11]
[361983297,1747923907646,100000.0,0.00012,2]
[361983298,1747923907671,100000.0,0.00012,2]
[361983299,1747923907697,100000.0,0.00012,2]
[361983300,1747923907729,280441.75666666,0.00012,2]
[361983301,1747923907948,305241.75666667,0.00012,2]
[361983302,1747923907974,305241.75666667,0.00012,2]
[361983303,1747923908007,1154272.86313346,0.00012,2]
[361983304,1747923935518,29237.19304267,9e-05,2]
[361983305,1747923953263,-150.32,0.00013699,2]
[361983306,1747923953285,-150.32,0.00021404,2]
[361983307,1747923953308,-139.41272013,0.00025564,2]
[361983308,1747923953429,6469.38595609,6.94e-05,2]
[361983309,1747923954086,-32.19727987,0.00025564,2]
[361983310,1747923954107,-250.0,0.0002812,2]
[361983311,1747923954127,-198.87985781,0.0002812,2]
[361983312,1747923961252,593.65384453,8e-05,2]
[361983313,1747923966164,785.39436636,8e-05,2]
[361983314,1747924036117,-51.12014219,0.0002812,2]
[361983315,1747924036140,-150.32,0.0002911,2]
[361983316,1747924036163,-14.29209557,0.0002935,2]
[361983317,1747924041089,251.92515861,0.000101,2]
[361983319,1747924052111,-512.06790443,0.0002935,2]
[361983320,1747924052135,-187.93564841,0.00030848,2]
[361983321,1747924052158,-443.13331781,0.00030948,2]
[361983322,1747924075940,21046.1501282,0.0001,2]
[361983323,1747924079731,174368.70853045,0.00012,2]
[361983356,1747924231525,-551.09668219,0.00030948,2]
[361983357,1747924231535,-1000.0,0.00030986,2]
[361983358,1747924231547,-300.0,0.00030998,2]
[361983359,1747924231557,-300.0,0.00030998,2]
[361983360,1747924231566,-1200.0,0.00030998,2]
[361983361,1747924231575,-2723.85779637,0.00030999,2]
[361983362,1747924231588,-1827.96914429,0.00030999,2]
[361983363,1747924231600,-1113.9719995,0.00030999,2]
[361983364,1747924231611,-1636.896491,0.00030999,2]
[361983365,1747924231623,-4875.34456884,0.00030999,2]
[361983366,1747924231632,-250.0,0.00031066,2]
[361983367,1747924231642,-314.41,0.00031067,2]
[361983368,1747924231651,-175.42,0.00031077,2]
[361983369,1747924231661,-165.65,0.00031077,2]
[361983370,1747924231670,-1040.59,0.00031088,2]
[361983371,1747924231680,-150.0,0.00031088,7]
[361983372,1747924231689,-18015.27382117,0.00031098,2]
[361983373,1747924231720,-1107.64615845,0.00031098,2]
[361983374,1747924231735,-410.76199916,0.00031098,2]
[361983389,1747924237606,-739.97280458,0.00031098,2]
[361983390,1747924237622,-389.34026451,0.00031098,2]
[361983391,1747924237640,-3237.00495213,0.00031098,2]
[361983392,1747924237652,-170.49,0.00031112,30]
[361983393,1747924237663,-151.0,0.00031168,2]
[361983394,1747924237675,-388.20102817,0.00031168,2]
[361983395,1747924237686,-723.0513454,0.00031168,2]
[361983396,1747924237698,-693.3919763,0.00031168,2]
[361983397,1747924237710,-170.12,0.00031233,2]
[361983398,1747924237722,-1017.78038495,0.00031416,2]
[361983399,1747924237733,-150.0,0.00031425,2]
[361983400,1747924237744,-7135.86581305,0.00031426,10]
[361983401,1747924237876,-327.1864427,0.00031426,10]
[361983402,1747924237959,-901.47596624,0.00031426,10]
[361983403,1747924237973,-941.57868834,0.00031426,10]
[361983404,1747924237987,-10439.0,0.00031426,10]
[361983405,1747924238019,-17614.52491379,0.00031426,10]
[361983406,1747924238033,-7598.68924583,0.00031426,10]
[361983407,1747924238046,-256.6463619,0.00031426,10]
[361983409,1747924238059,-7809.01093713,0.00031426,10]
[361983411,1747924238072,-2456.81887525,0.00031426,10]
[361983414,1747924238085,-7785.61529002,0.00031426,10]
[361983416,1747924238098,-6943.40746575,0.00031426,10]
[361983418,1747924238110,-299.99,0.00031426,12]
[361983420,1747924238121,-150.99,0.00031426,2]
[361983421,1747924238132,-526.36,0.00031614,2]
[361983422,1747924238143,-500.0,0.00031682,2]
[361983424,1747924238155,-4000.0,0.00031851,2]
[361983426,1747924238166,-418.5045,0.00031889,4]
[361983428,1747924238177,-187.68,0.00031891,2]
[361983430,1747924238188,-203.56465481,0.000319,25]
[361983432,1747924238198,-624.23,0.00031941,2]
[361983434,1747924238209,-302.2,0.00031948,2]
[361983436,1747924238223,-9700.78954249,0.00031955,2]
[361983439,1747924238235,-167.33,0.00031998,2]
[361983441,1747924238246,-29566.0,0.00032,2]
[361983442,1747924238258,-7440.77842378,0.00032144,2]
[361983445,1747924238270,-500.0,0.00032227,2]
[361983446,1747924238282,-500.0,0.00032227,2]
[361983449,1747924238295,-500.0,0.00032227,2]
[361983450,1747924238320,-500.0,0.00032227,2]
[361983452,1747924238331,-500.0,0.00032227,2]
[361983454,1747924238341,-500.0,0.00032227,2]
[361983456,1747924238353,-500.0,0.00032227,2]
[361983458,1747924238364,-517.45732667,0.00032227,2]
[361983460,1747924238374,-500.0,0.00032227,2]
[361983462,1747924238385,-500.0,0.00032227,2]
[361983464,1747924238395,-500.0,0.00032227,2]
[361983466,1747924238405,-500.0,0.00032227,2]
[361983467,1747924238415,-500.0,0.00032227,2]
[361983469,1747924238431,-500.0,0.00032227,2]
[361983471,1747924238442,-500.0,0.00032227,2]
[361983473,1747924238454,-500.0,0.00032227,2]
[361983475,1747924238465,-500.0,0.00032227,2]
[361983477,1747924238476,-500.0,0.00032227,2]
[361983479,1747924238487,-500.0,0.00032227,2]
[361983481,1747924238504,-500.0,0.00032227,2]
[361983483,1747924238516,-500.0,0.00032227,2]
[361983485,1747924238528,-500.0,0.00032227,2]
[361983487,1747924238541,-500.0,0.00032227,2]
[361983489,1747924238562,-500.0,0.00032227,2]
[361983491,1747924238574,-500.0,0.00032227,2]
[361983493,1747924238584,-500.0,0.00032227,2]
[361983495,1747924238596,-500.0,0.00032227,2]
[361983497,1747924238606,-500.0,0.00032227,2]
[361983499,1747924238617,-500.0,0.00032227,2]
[361983500,1747924238627,-500.0,0.00032227,2]
[361983502,1747924238639,-500.0,0.00032227,2]
[361983504,1747924238651,-500.0,0.00032227,2]
[361983506,1747924238663,-500.0,0.00032227,2]
[361983508,1747924238674,-9700.78954242,0.00032229,2]
[361983510,1747924238686,-9700.78954242,0.00032503,2]
[361983512,1747924238697,-307.25057329,0.00032537,2]
[361983514,1747924238709,-1162.54391,0.0003254,2]
[361983516,1747924238721,-1658.334,0.000327,33]
[361983518,1747924238731,-165.187,0.000327,33]
[361983520,1747924238745,-500.0,0.000327,11]
[361983521,1747924238756,-8660.63435659,0.00032748,3]
[361983523,1747924238768,-920.8524,0.00032767,10]
[361983525,1747924238778,-452.0329,0.00032776,2]
[361983527,1747924238789,-256.56466176,0.00032776,15]
[361983529,1747924238809,-5072.28872868,0.00032776,2]
[361983531,1747924238821,-154.04382782,0.00032776,2]
[361983533,1747924238835,-9700.78954242,0.00032777,2]
[361983534,1747924238850,-281.19443862,0.0003278,2]
[361983536,1747924238862,-2000.0,0.000328,7]
[361983538,1747924238872,-2900.0,0.000328,16]
[361983540,1747924238887,-1100.0,0.000328,11]
[361983542,1747924238901,-864.76119748,0.00032835,2]
[361983544,1747924238912,-1131.05,0.00032856,2]
[361983546,1747924238924,-8633.8316718,0.00032866,2]
[361983548,1747924238935,-2877.9438906,0.00032867,2]
[361983550,1747924238947,-500.0,0.00032873,5]
[361983552,1747924238960,-265.10967764,0.00032873,5]
[361983554,1747924238971,-515.79449268,0.00032873,5]
[361983555,1747924238982,-500.0,0.00032873,5]
[361983557,1747924238993,-500.0,0.00032873,5]
[361983559,1747924239004,-500.0,0.00032873,5]
[361983561,1747924239015,-344.13628255,0.00032873,3]
[361983563,1747924239026,-500.0,0.00032873,5]
[361983565,1747924239037,-637.7499,0.00032875,2]
[361983568,1747924239058,-150.0,0.00032875,2]
[361983569,1747924239069,-298.13837403,0.00032875,2]
[361983571,1747924239081,-390.528829,0.00032876,5]
[361983573,1747924239091,-152.959474,0.00032876,5]
[361983575,1747924239102,-214.222131,0.00032876,5]
[361983577,1747924239113,-152.159025,0.00032876,7]
[361983579,1747924239124,-152.223012,0.00032876,7]
[361983581,1747924239135,-420.0,0.00032876,5]
[361983583,1747924239146,-420.0,0.00032876,5]
[361983585,1747924239159,-280.0,0.00032876,5]
[361983587,1747924239170,-454.42,0.00032876,5]
[361983589,1747924239181,-420.0,0.00032876,5]
[361983591,1747924239192,-420.0,0.00032876,5]
[361983593,1747924239203,-420.0,0.00032876,5]
[361983594,1747924239215,-420.0,0.00032876,5]
[361983596,1747924239227,-420.0,0.00032876,5]
[361983598,1747924239237,-602.85,0.00032876,5]
[361983600,1747924239248,-420.0,0.00032876,5]
[361983603,1747924239260,-420.0,0.00032876,5]
[361983606,1747924239271,-420.0,0.00032876,5]
[361983609,1747924239282,-420.0,0.00032876,5]
[361983611,1747924239293,-420.0,0.00032876,5]
[361983613,1747924239310,-730.32,0.00032876,5]
[361983615,1747924239321,-420.0,0.00032876,5]
[361983617,1747924239332,-420.0,0.00032876,5]
[361983619,1747924239345,-420.0,0.00032876,5]
[361983621,1747924239355,-888.14,0.00032876,5]
[361983623,1747924239366,-420.0,0.00032876,5]
[361983625,1747924239377,-571.97,0.00032876,5]
[361983627,1747924239388,-463.54,0.00032876,5]
[361983629,1747924239400,-711.16,0.00032876,5]
[361983630,1747924239410,-532.02,0.00032876,5]
[361983632,1747924239422,-420.0,0.00032876,5]
[361983634,1747924239433,-771.68,0.00032876,5]
[361983636,1747924239445,-420.0,0.00032876,5]
[361983638,1747924239457,-491.69,0.00032876,5]
[361983640,1747924239469,-420.0,0.00032876,5]
[361983642,1747924239480,-420.0,0.00032876,5]
[361983644,1747924239493,-420.0,0.00032876,5]
[361983646,1747924239506,-420.0,0.00032876,5]
[361983648,1747924239517,-420.0,0.00032876,5]
[361983650,1747924239527,-420.0,0.00032876,5]
[361983652,1747924239540,-478.54753781,0.00032876,5]
[361983654,1747924239553,-420.0,0.00032876,5]
[361983656,1747924239564,-420.0,0.00032876,5]
[361983659,1747924239577,-823.97,0.00032876,5]
[361983661,1747924239589,-420.0,0.00032876,5]
[361983663,1747924239599,-420.0,0.00032876,5]
[361983664,1747924239610,-420.0,0.00032876,5]
[361983665,1747924239621,-420.0,0.00032876,5]
[361983666,1747924239632,-420.0,0.00032876,5]
[361983667,1747924239643,-420.0,0.00032876,5]
[361983668,1747924239655,-545.7,0.00032876,5]
[361983669,1747924239667,-420.0,0.00032876,5]
[361983670,1747924239678,-420.0,0.00032876,5]
[361983671,1747924239690,-420.0,0.00032876,5]
[361983672,1747924239701,-420.0,0.00032876,5]
[361983703,1747924240045,-745.08,0.00032876,5]
[361983708,1747924240163,-728.12,0.00032876,5]
[361983710,1747924240174,-420.0,0.00032876,5]
[361983712,1747924240187,-420.0,0.00032876,5]
[361983715,1747924240198,-420.0,0.00032876,5]
[361983716,1747924240209,-420.0,0.00032876,5]
[361983718,1747924240219,-420.0,0.00032876,5]
[361983720,1747924240229,-420.0,0.00032876,5]
[361983722,1747924240240,-847.31,0.00032876,5]
[361983724,1747924240250,-179.93736249,0.00032876,5]
[361983726,1747924240260,-420.0,0.00032876,5]
[361983728,1747924240270,-420.0,0.00032876,5]
[361983730,1747924240281,-425.35751456,0.00032876,5]
[361983732,1747924240291,-420.0,0.00032876,5]
[361983734,1747924240304,-420.0,0.00032876,5]
[361983736,1747924240315,-420.0,0.00032876,5]
[361983738,1747924240325,-676.91,0.00032876,5]
[361983740,1747924240335,-420.0,0.00032876,5]
[361983742,1747924240346,-420.0,0.00032876,5]
[361983744,1747924240356,-420.0,0.00032876,5]
[361983746,1747924240367,-814.83,0.00032876,5]
[361983749,1747924240377,-420.0,0.00032876,5]
[361983751,1747924240388,-420.0,0.00032876,5]
[361983752,1747924240398,-478.12,0.00032876,5]
[361983754,1747924240407,-584.57,0.00032876,5]
[361983756,1747924240417,-871.98,0.00032876,5]
[361983759,1747924240427,-420.0,0.00032876,5]
[361983760,1747924240437,-722.98,0.00032876,5]
[361983762,1747924240447,-680.75,0.00032876,5]
[361983764,1747924240457,-420.0,0.00032876,5]
[361983766,1747924240467,-420.0,0.00032876,2]
[361983768,1747924240477,-629.75,0.00032876,5]
[361983770,1747924240487,-420.0,0.00032876,5]
[361983772,1747924240501,-420.0,0.00032876,5]
[361983774,1747924240511,-420.0,0.00032876,5]
[361983776,1747924240520,-420.0,0.00032876,5]
[361983778,1747924240529,-420.0,0.00032876,5]
[361983780,1747924240540,-753.36,0.00032876,5]
[361983782,1747924240551,-421.91780047,0.00032876,5]
[361983784,1747924240560,-420.0,0.00032876,5]
[361983786,1747924240570,-628.69,0.00032876,5]
[361983788,1747924240582,-420.0,0.00032876,5]
[361983790,1747924240594,-420.0,0.00032876,5]
[361983792,1747924240604,-460.17,0.00032876,5]
[361983794,1747924240614,-423.5,0.00032876,5]
[361983796,1747924240624,-781.88,0.00032876,5]
[361983798,1747924240634,-425.05,0.00032876,5]
[361983800,1747924240643,-420.0,0.00032876,5]
[361983802,1747924240653,-420.0,0.00032876,5]
[361983804,1747924240663,-420.0,0.00032876,5]
[361983806,1747924240672,-420.0,0.00032876,5]
[361983808,1747924240682,-555.03,0.00032876,5]
[361983810,1747924240691,-420.0,0.00032876,5]